{"text_format":"3","workbook":"xlsx","n_sheets":1,"sheets":["Książki biblioteczne"],"not_rendered":{"defined_names":4},"read":"whole","date_system":"1900"}

{"sheet":"Książki biblioteczne","index":0,"n_rows":9,"n_cols":8,"rows_kept":9,"merged":[[0,1,0,4],[0,5,0,6]]}
[null,"Arkusz ewidencji książek bibliotecznych",{"$nulls":3},"DNI DO ZALEGŁOŚCI: ",null,10]
["Zaległe","UCZEŃ","ADRES E-MAIL DO KONTAKTU","TELEFON DO KONTAKTU","TYTUŁ KSIĄŻKI","DATA WYPOŻYCZENIA","DATA ZWROTU","DNI"]
[{"$f":"IFERROR(((Książki[[#This Row],[DATA WYPOŻYCZENIA]]+Dozwolone_dni)<TODAY())*(LEN(Książki[[#This Row],[DATA ZWROTU]])=0)*(LEN(Książki[[#This Row],[DATA WYPOŻYCZENIA]])>0),0)","v":0},"Irena Jaworska","osoba@example.com","555-0100","W pustyni i w puszczy",{"$f":"DATE(YEAR(TODAY()),1,14)","v":"2018-01-14"},{"$f":"DATE(YEAR(TODAY()),1,21)","v":"2018-01-21"},{"$f":"IFERROR(IF(Książki[[#This Row],[DATA ZWROTU]]=\"\",IF(Książki[[#This Row],[DATA WYPOŻYCZENIA]]<>\"\", TODAY()-Książki[[#This Row],[DATA WYPOŻYCZENIA]],\"\"),Książki[[#This Row],[DATA ZWROTU]]-Książki[[#This Row],[DATA WYPOŻYCZENIA]]), \"\")","v":7}]
[{"$f":"IFERROR(((Książki[[#This Row],[DATA WYPOŻYCZENIA]]+Dozwolone_dni)<TODAY())*(LEN(Książki[[#This Row],[DATA ZWROTU]])=0)*(LEN(Książki[[#This Row],[DATA WYPOŻYCZENIA]])>0),0)","v":0},"Paweł Zawadzki","osoba@example.com","555-0101","Ania z Zielonego Wzgórza",{"$f":"DATE(YEAR(TODAY()),2,15)","v":"2018-02-15"},{"$f":"DATE(YEAR(TODAY()),2,18)","v":"2018-02-18"},{"$f":"IFERROR(IF(Książki[[#This Row],[DATA ZWROTU]]=\"\",IF(Książki[[#This Row],[DATA WYPOŻYCZENIA]]<>\"\", TODAY()-Książki[[#This Row],[DATA WYPOŻYCZENIA]],\"\"),Książki[[#This Row],[DATA ZWROTU]]-Książki[[#This Row],[DATA WYPOŻYCZENIA]]), \"\")","v":3}]
[{"$f":"IFERROR(((Książki[[#This Row],[DATA WYPOŻYCZENIA]]+Dozwolone_dni)<TODAY())*(LEN(Książki[[#This Row],[DATA ZWROTU]])=0)*(LEN(Książki[[#This Row],[DATA WYPOŻYCZENIA]])>0),0)","v":0},"Błażej Woźniak","osoba@example.com","555-0102","Muminki",{"$f":"DATE(YEAR(TODAY()),2,17)","v":"2018-02-17"},{"$f":"DATE(YEAR(TODAY()),2,22)","v":"2018-02-22"},{"$f":"IFERROR(IF(Książki[[#This Row],[DATA ZWROTU]]=\"\",IF(Książki[[#This Row],[DATA WYPOŻYCZENIA]]<>\"\", TODAY()-Książki[[#This Row],[DATA WYPOŻYCZENIA]],\"\"),Książki[[#This Row],[DATA ZWROTU]]-Książki[[#This Row],[DATA WYPOŻYCZENIA]]), \"\")","v":5}]
[{"$f":"IFERROR(((Książki[[#This Row],[DATA WYPOŻYCZENIA]]+Dozwolone_dni)<TODAY())*(LEN(Książki[[#This Row],[DATA ZWROTU]])=0)*(LEN(Książki[[#This Row],[DATA WYPOŻYCZENIA]])>0),0)","v":0},"Jakub Wysocki","osoba@example.com","555-0103","Akademia pana Kleksa",{"$f":"DATE(YEAR(TODAY()),2,17)","v":"2018-02-17"},{"$f":"DATE(YEAR(TODAY()),2,25)","v":"2018-02-25"},{"$f":"IFERROR(IF(Książki[[#This Row],[DATA ZWROTU]]=\"\",IF(Książki[[#This Row],[DATA WYPOŻYCZENIA]]<>\"\", TODAY()-Książki[[#This Row],[DATA WYPOŻYCZENIA]],\"\"),Książki[[#This Row],[DATA ZWROTU]]-Książki[[#This Row],[DATA WYPOŻYCZENIA]]), \"\")","v":8}]
[{"$f":"IFERROR(((Książki[[#This Row],[DATA WYPOŻYCZENIA]]+Dozwolone_dni)<TODAY())*(LEN(Książki[[#This Row],[DATA ZWROTU]])=0)*(LEN(Książki[[#This Row],[DATA WYPOŻYCZENIA]])>0),0)","v":0},"Aneta Duda","osoba@example.com","555-0104","Dzieci z Bullerbyn",{"$f":"DATE(YEAR(TODAY()),2,18)","v":"2018-02-18"},{"$f":"DATE(YEAR(TODAY()),2,28)","v":"2018-02-28"},{"$f":"IFERROR(IF(Książki[[#This Row],[DATA ZWROTU]]=\"\",IF(Książki[[#This Row],[DATA WYPOŻYCZENIA]]<>\"\", TODAY()-Książki[[#This Row],[DATA WYPOŻYCZENIA]],\"\"),Książki[[#This Row],[DATA ZWROTU]]-Książki[[#This Row],[DATA WYPOŻYCZENIA]]), \"\")","v":10}]
[{"$f":"IFERROR(((Książki[[#This Row],[DATA WYPOŻYCZENIA]]+Dozwolone_dni)<TODAY())*(LEN(Książki[[#This Row],[DATA ZWROTU]])=0)*(LEN(Książki[[#This Row],[DATA WYPOŻYCZENIA]])>0),0)","v":1},"Joanna Krawczyk","osoba@example.com","555-0105","Kubuś Puchatek",{"$f":"DATE(YEAR(TODAY()),1,23)","v":"2018-01-23"},null,{"$f":"IFERROR(IF(Książki[[#This Row],[DATA ZWROTU]]=\"\",IF(Książki[[#This Row],[DATA WYPOŻYCZENIA]]<>\"\", TODAY()-Książki[[#This Row],[DATA WYPOŻYCZENIA]],\"\"),Książki[[#This Row],[DATA ZWROTU]]-Książki[[#This Row],[DATA WYPOŻYCZENIA]]), \"\")","v":162}]
[{"$f":"IFERROR(((Książki[[#This Row],[DATA WYPOŻYCZENIA]]+Dozwolone_dni)<TODAY())*(LEN(Książki[[#This Row],[DATA ZWROTU]])=0)*(LEN(Książki[[#This Row],[DATA WYPOŻYCZENIA]])>0),0)","v":0},"Lidia Nowakowska","osoba@example.com","555-0106","Koziołek Matołek",{"$f":"TODAY()","v":"2018-07-04"},null,{"$f":"IFERROR(IF(Książki[[#This Row],[DATA ZWROTU]]=\"\",IF(Książki[[#This Row],[DATA WYPOŻYCZENIA]]<>\"\", TODAY()-Książki[[#This Row],[DATA WYPOŻYCZENIA]],\"\"),Książki[[#This Row],[DATA ZWROTU]]-Książki[[#This Row],[DATA WYPOŻYCZENIA]]), \"\")","v":0}]